[Event "DFMMLV 2019"]
[Site "Braunfels"]
[Date "2019.06.21"]
[Round "3.14"]
[White "Lowke, Kathrin"]
[Black "Hiebsch, Catalina"]
[Result "0-1"]
[ECO "C64"]
[WhiteElo "1887"]
[BlackElo "1760"]
[Annotator "NA"]
[PlyCount "72"]
[EventDate "2019.06.20"]
[EventType "team-tourn"]
[EventCountry "GER"]
[SourceTitle "playchess.com"]
[Source "ChessBase"]
[SourceQuality "1"]
[WhiteTeam "Sachsen"]
[BlackTeam "NRW"]
[TimeControl "40/5400+30:1800+30"]

1. e4 {[%emt 0:00:00]} e5 {[%emt 0:00:00]} 2. Nf3 {[%emt 0:00:00]} Nc6 {[%emt 0:00:00]} 3. Bb5 {[%emt 0:00:00]} Bc5 {[%emt 0:00:19]} 4. O-O {[%emt 0:01:20]} d6 {[%emt 0:00:57]} 5. h3 {[%emt 0:01:18]} Bd7 {[%emt 0:00:44]} 6. c3 {[%emt 0:00:23]} Nf6 {[%emt 0:04:56]} 7. Re1 {[%emt 0:00:17]} O-O {[%emt 0:02:45]} 8. d4 {[%emt 0:00:44]} exd4 {[%emt 0:06:24]} 9. cxd4 {[%emt 0:02:35]} Bb4 {[%emt 0:03:36]} 10. Bd2 {[%emt 0:00:53]} Bxd2 {[%emt 0:01:28]} 11. Nbxd2 {[%emt 0:02:59]} a6 {[%emt 0:01:03]} 12. Ba4 {[%emt 0:01:10]} b5 {[%emt 0:01:04]} 13. Bb3 {[%emt 0:00:30]} Na5 {[%emt 0:06:07]} 14. Bc2 {[%emt 0:00:35]} c5 {[%emt 0:05:55]} 15. e5 {[%emt 0:02:52]} dxe5 {[%emt 0:02:57]} 16. dxc5 {[%emt 0:01:03]} Qc7 {[%emt 0:06:24]} 17. Rxe5 {[%emt 0:06:54]} Bc6 {[%emt 0:04:48]} 18. b4 {[%emt 0:06:18]} Bxf3 {[%emt 0:01:50]} 19. Nxf3 {[%emt 0:00:35]} Nc6 {[%emt 0:00:20]} 20. Re2 {[%emt 0:11:21]} Nxb4 {[%emt 0:01:16]} 21. Qd4 {[%emt 0:02:41]} Nxc2 {[%emt 0:02:30]} 22. Rxc2 {[%emt 0:00:06]} Rfd8 {[%emt 0:04:09]} 23. Qb4 {[%emt 0:03:13]} Nd5 {[%emt 0:05:57]} 24. Qb3 {[%emt 0:02:37]} Rac8 {[%emt 0:02:37]} 25. a4 {[%emt 0:06:45]} b4 {[%emt 0:03:59]} 26. a5 {[%emt 0:00:06]} Rb8 {[%emt 0:03:38]} 27. Qc4 {[%emt 0:02:01]} Rb5 {[%emt 0:10:57]} 28. Nd4 {[%emt 0:02:14]} Rbb8 {[%emt 0:05:19]} 29. Qxa6 {[%emt 0:03:19]} b3 {[%emt 0:03:25]} 30. Rb2 {[%emt 0:02:58]} Qxc5 {[%emt 0:01:37]} 31. Ne2 {[%emt 0:07:39]} Nb4 {[%emt 0:02:06]} 32. Qb6 {[%emt 0:10:47]} Rxb6 {[%emt 0:00:11]} 33. axb6 {[%emt 0:00:04]} Qxb6 {[%emt 0:01:01]} 34. Rxb3 {[%emt 0:00:07]} Qd6 {[%emt 0:00:35]} 35. Rab1 {[%emt 0:00:54]} Nc6 {[%emt 0:01:42]} 36. Ng3 {[%emt 0:00:13]} Rb8 {[%emt 0:01:05]} 0-1

[Event "DFMMLV 2019"]
[Site "Braunfels"]
[Date "2019.06.21"]
[Round "3.15"]
[White "Hoerhold, Karola"]
[Black "von Keyserlingk, Chanda"]
[Result "1/2-1/2"]
[ECO "B23"]
[WhiteElo "1727"]
[BlackElo "1702"]
[Annotator "NA"]
[PlyCount "53"]
[EventDate "2019.06.20"]
[EventType "team-tourn"]
[EventCountry "GER"]
[SourceTitle "playchess.com"]
[Source "ChessBase"]
[SourceQuality "1"]
[WhiteTeam "NRW"]
[BlackTeam "Sachsen"]
[TimeControl "40/5400+30:1800+30"]

1. e4 {[%emt 0:00:00]} c5 {[%emt 0:00:41]} 2. Nc3 {[%emt 0:00:00]} d6 {[%emt 0:00:40]} 3. f4 {[%emt 0:00:43]} Nc6 {[%emt 0:01:59]} 4. Nf3 {[%emt 0:00:45]} g6 {[%emt 0:01:07]} 5. Bb5 {[%emt 0:01:17]} Bg7 {[%emt 0:01:17]} 6. Bxc6+ {[%emt 0:00:23]} bxc6 7. d3 Nf6 {[%emt 0:04:29]} 8. O-O {[%emt 0:00:47]} O-O {[%emt 0:00:21]} 9. Qe1 {[%emt 0:02:55]} e6 {[%emt 0:06:31]} 10. Bd2 {[%emt 0:03:08]} Rb8 {[%emt 0:08:43]} 11. b3 {[%emt 0:00:34]} Ne8 {[%emt 0:01:26]} 12. Rd1 {[%emt 0:06:37]} Nc7 {[%emt 0:06:46]} 13. Qg3 {[%emt 0:17:23]} Nb5 {[%emt 0:06:38]} 14. Nxb5 {[%emt 0:02:26]} cxb5 {[%emt 0:02:44]} 15. c4 {[%emt 0:05:16]} b4 {[%emt 0:05:21]} 16. Be3 {[%emt 0:08:48]} Qc7 {[%emt 0:04:42]} 17. d4 {[%emt 0:05:22]} cxd4 {[%emt 0:04:04]} 18. Nxd4 {[%emt 0:02:56]} Bd7 {[%emt 0:01:58]} 19. f5 {[%emt 0:07:06]} Be5 {[%emt 0:03:22]} 20. Qh3 {[%emt 0:00:39]} Bxd4 {[%emt 0:09:44]} 21. Bxd4 {[%emt 0:01:00]} e5 {[%emt 0:00:24]} 22. Qh6 {[%emt 0:03:35]} f6 {[%emt 0:03:48]} 23. fxg6 {[%emt 0:06:28]} Bg4 {[%emt 0:02:12]} 24. Rd3 {[%emt 0:10:48]} Qg7 {[%emt 0:04:05]} 25. gxh7+ {[%emt 0:03:43]} Qxh7 {[%emt 0:00:17]} 26. Qxh7+ {[%emt 0:00:11]} Kxh7 {[%emt 0:00:08]} 27. Bxa7 {[%emt 0:02:52]} 1/2-1/2

[Event "DFMMLV 2019"]
[Site "Braunfels"]
[Date "2019.06.21"]
[Round "3.16"]
[White "Gottschall, Ina"]
[Black "Haehnel, Andrea"]
[Result "1-0"]
[ECO "A40"]
[WhiteElo "1637"]
[BlackElo "1746"]
[Annotator "NA"]
[PlyCount "59"]
[EventDate "2019.06.20"]
[EventType "team-tourn"]
[EventCountry "GER"]
[SourceTitle "playchess.com"]
[Source "ChessBase"]
[SourceQuality "1"]
[WhiteTeam "Sachsen"]
[BlackTeam "NRW"]
[TimeControl "40/5400+30:1800+30"]

1. d4 {[%emt 0:00:00]} e6 {[%emt 0:00:00]} 2. Nf3 {[%emt 0:00:14]} f5 {[%emt 0:00:09]} 3. g3 {[%emt 0:00:23]} Nf6 {[%emt 0:00:39]} 4. Bg5 {[%emt 0:00:48]} Be7 {[%emt 0:00:07]} 5. Bg2 {[%emt 0:00:41]} O-O {[%emt 0:00:22]} 6. c4 {[%emt 0:01:11]} Ne4 {[%emt 0:02:59]} 7. Bxe7 {[%emt 0:02:14]} Qxe7 {[%emt 0:00:05]} 8. O-O {[%emt 0:03:01]} d6 {[%emt 0:01:34]} 9. Nc3 {[%emt 0:04:51]} Nxc3 {[%emt 0:00:12]} 10. bxc3 {[%emt 0:00:04]} e5 {[%emt 0:07:03]} 11. dxe5 {[%emt 0:05:49]} dxe5 {[%emt 0:00:20]} 12. Qd5+ {[%emt 0:00:56]} Be6 {[%emt 0:07:51]} 13. Qxb7 {[%emt 0:03:55]} Nd7 {[%emt 0:03:14]} 14. Nd2 {[%emt 0:11:43]} e4 {[%emt 0:08:34]} 15. Qb4 {[%emt 0:15:03]} Qf7 {[%emt 0:01:05]} 16. Rab1 {[%emt 0:06:24]} Ne5 {[%emt 0:06:12]} 17. Qa4 {[%emt 0:12:13]} Qh5 {[%emt 0:07:41]} 18. Qa6 {[%emt 0:08:28]} Qh6 {[%emt 0:11:32]} 19. Rfd1 {[%emt 0:03:45]} Rf6 {[%emt 0:11:10]} 20. Qb7 {[%emt 0:01:16]} Raf8 {[%emt 0:02:22]} 21. Qxc7 {[%emt 0:01:06]} Ng4 {[%emt 0:01:27]} 22. h3 {[%emt 0:00:33]} Nxf2 {[%emt 0:00:22]} 23. Kxf2 {[%emt 0:01:06]} e3+ {[%emt 0:00:06]} 24. Kg1 {[%emt 0:01:10]} f4 {[%emt 0:05:19]} 25. Ne4 {[%emt 0:02:14]} R6f7 {[%emt 0:03:48]} 26. Qe5 {[%emt 0:02:51]} Bxc4 {[%emt 0:05:41]} 27. Rd6 {[%emt 0:00:45]} Qxd6 {[%emt 0:06:48]} 28. Nxd6 {[%emt 0:02:15]} Bxe2 {[%emt 0:03:15]} 29. Nxf7 {[%emt 0:00:35]} f3 {[%emt 0:02:14]} 30. Qxe3 {[%emt 0:01:57]} 1-0

[Event "DFMMLV 2019"]
[Site "Braunfels"]
[Date "2019.06.21"]
[Round "3.17"]
[White "Kushka, Alena"]
[Black "Braeutigam, Irina"]
[Result "0-1"]
[ECO "A41"]
[WhiteElo "2148"]
[BlackElo "1973"]
[Annotator "NA"]
[PlyCount "86"]
[EventDate "2019.06.20"]
[EventType "team-tourn"]
[EventCountry "GER"]
[SourceTitle "playchess.com"]
[Source "ChessBase"]
[SourceQuality "1"]
[WhiteTeam "Hessen 1"]
[BlackTeam "Schleswig Holstein"]
[TimeControl "40/5400+30:1800+30"]

1. d4 {[%emt 0:00:00]} d6 {[%emt 0:00:00]} 2. Nf3 {[%emt 0:00:00]} Nd7 {[%emt 0:00:08]} 3. g3 {[%emt 0:00:26]} g6 {[%emt 0:01:32]} 4. Bg2 {[%emt 0:00:20]} Bg7 {[%emt 0:00:01]} 5. O-O {[%emt 0:00:38]} e5 {[%emt 0:01:00]} 6. c4 {[%emt 0:01:15]} Ne7 {[%emt 0:03:42]} 7. Nc3 {[%emt 0:01:00]} O-O {[%emt 0:00:08]} 8. e4 {[%emt 0:00:10]} a5 {[%emt 0:06:54]} 9. b3 {[%emt 0:04:48]} exd4 {[%emt 0:06:26]} 10. Nxd4 {[%emt 0:00:10]} Nc5 {[%emt 0:00:06]} 11. Bb2 {[%emt 0:02:26]} Bd7 {[%emt 0:00:34]} 12. Rb1 {[%emt 0:05:25]} f5 {[%emt 0:16:05]} 13. f4 {[%emt 0:05:07]} Nc6 {[%emt 0:04:03]} 14. Nxc6 {[%emt 0:04:37]} Bxc6 {[%emt 0:05:19]} 15. exf5 {[%emt 0:01:39]} Bxg2 {[%emt 0:02:31]} 16. Kxg2 {[%emt 0:00:04]} gxf5 {[%emt 0:00:09]} 17. Re1 {[%emt 0:11:18]} Qd7 {[%emt 0:00:35]} 18. Nd5 {[%emt 0:08:53]} Ne4 {[%emt 0:08:16]} 19. Qd3 {[%emt 0:04:45]} Rae8 {[%emt 0:02:03]} 20. Ne3 {[%emt 0:06:25]} b6 {[%emt 0:05:54]} 21. Bxg7 {[%emt 0:02:56]} Kxg7 {[%emt 0:00:06]} 22. Re2 {[%emt 0:07:58]} Nc5 {[%emt 0:15:50]} 23. Qd4+ {[%emt 0:00:31]} Kg6 {[%emt 0:00:18]} 24. Rbe1 {[%emt 0:16:41]} Re4 {[%emt 0:00:41]} 25. Qd5 {[%emt 0:00:26]} Rfe8 {[%emt 0:01:46]} 26. g4 {[%emt 0:01:16]} fxg4 {[%emt 0:10:00]} 27. Qg5+ {[%emt 0:02:04]} Kf7 {[%emt 0:00:07]} 28. Kg1 {[%emt 0:02:23]} Kf8 {[%emt 0:04:44]} 29. Nf5 {[%emt 0:04:21]} Qf7 {[%emt 0:03:39]} 30. Nh6 {[%emt 0:02:02]} Qg6 {[%emt 0:00:37]} 31. Qxg6 {[%emt 0:00:31]} hxg6 {[%emt 0:00:01]} 32. Rxe4 {[%emt 0:00:08]} Rxe4 {[%emt 0:00:23]} 33. Rxe4 {[%emt 0:00:56]} Nxe4 {[%emt 0:00:00]} 34. Nxg4 {[%emt 0:00:21]} Nc3 {[%emt 0:00:02]} 35. Kf2 {[%emt 0:01:05]} Nxa2 {[%emt 0:00:07]} 36. Ne3 {[%emt 0:01:16]} Nc1 {[%emt 0:01:09]} 37. Nd5 {[%emt 0:00:35]} Nxb3 {[%emt 0:00:17]} 38. Nxc7 {[%emt 0:00:09]} Nd2 {[%emt 0:00:52]} 39. Ke3 {[%emt 0:00:10]} Nxc4+ {[%emt 0:00:22]} 40. Kd4 {[%emt 0:02:11]} Na3 {[%emt 0:01:50]} 41. Kd5 {[%emt 0:32:12]} Ke7 {[%emt 0:13:53]} 42. Kc6 {[%emt 0:00:00]} b5 {[%emt 0:00:37]} 43. Kb6 {[%emt 0:00:00]} b4 {[%emt 0:01:42]} 0-1

[Event "DFMMLV 2019"]
[Site "Braunfels"]
[Date "2019.06.21"]
[Round "3.18"]
[White "Glinzner, Alva"]
[Black "Bluebaum, Johanna"]
[Result "1-0"]
[ECO "C00"]
[WhiteElo "1833"]
[BlackElo "2003"]
[Annotator "NA"]
[PlyCount "152"]
[EventDate "2019.06.20"]
[EventType "team-tourn"]
[EventCountry "GER"]
[SourceTitle "playchess.com"]
[Source "ChessBase"]
[SourceQuality "1"]
[WhiteTeam "Schleswig Holstein"]
[BlackTeam "Hessen 1"]
[TimeControl "40/5400+30:1800+30"]

1. e4 {[%emt 0:00:00]} e6 {[%emt 0:00:00]} 2. d3 {[%emt 0:00:00]} d5 {[%emt 0:00:00]} 3. Nd2 {[%emt 0:00:11]} Nf6 {[%emt 0:00:00]} 4. g3 {[%emt 0:00:52]} dxe4 {[%emt 0:00:18]} 5. dxe4 {[%emt 0:00:21]} Bc5 {[%emt 0:03:13]} 6. Bg2 {[%emt 0:01:16]} e5 {[%emt 0:03:43]} 7. Ngf3 {[%emt 0:00:54]} Nc6 {[%emt 0:00:22]} 8. O-O {[%emt 0:00:28]} O-O {[%emt 0:02:47]} 9. c3 {[%emt 0:01:54]} h6 {[%emt 0:03:15]} 10. Qc2 {[%emt 0:00:25]} Be6 11. h3 {[%emt 0:02:56]} Qe7 {[%emt 0:05:21]} 12. Nh4 {[%emt 0:04:49]} Rfd8 {[%emt 0:00:47]} 13. Kh2 {[%emt 0:01:51]} Rd7 {[%emt 0:13:53]} 14. f4 {[%emt 0:08:27]} exf4 {[%emt 0:02:00]} 15. gxf4 {[%emt 0:00:26]} Ng4+ {[%emt 0:00:49]} 16. Kg3 {[%emt 0:08:53]} Ne3 {[%emt 0:02:09]} 17. Qb1 {[%emt 0:03:26]} Nxf1+ {[%emt 0:02:29]} 18. Nxf1 {[%emt 0:00:17]} Rad8 {[%emt 0:04:15]} 19. Nf3 {[%emt 0:02:41]} Bc4 {[%emt 0:01:57]} 20. b4 {[%emt 0:00:58]} Bb6 {[%emt 0:01:14]} 21. a4 {[%emt 0:02:03]} Bd3 {[%emt 0:00:34]} 22. Qb3 {[%emt 0:01:02]} a6 {[%emt 0:02:18]} 23. e5 {[%emt 0:01:44]} a5 {[%emt 0:12:40]} 24. b5 {[%emt 0:02:49]} Nb8 {[%emt 0:00:27]} 25. Ne3 {[%emt 0:02:19]} Qe8 {[%emt 0:03:22]} 26. Nh4 {[%emt 0:04:06]} g5 {[%emt 0:02:40]} 27. Nhf5 {[%emt 0:03:06]} gxf4+ {[%emt 0:00:55]} 28. Kxf4 {[%emt 0:00:14]} Kh8 {[%emt 0:14:54]} 29. Bxb7 {[%emt 0:09:22]} Qg8 {[%emt 0:02:29]} 30. Nxh6 {[%emt 0:03:54]} Qg6 {[%emt 0:01:07]} 31. Nhg4 {[%emt 0:01:39]} Rg8 {[%emt 0:01:55]} 32. Bd5 {[%emt 0:09:47]} Bxe3+ {[%emt 0:02:04]} 33. Kxe3 {[%emt 0:03:50]} Bc2 {[%emt 0:00:22]} 34. Qc4 {[%emt 0:00:35]} Rgd8 {[%emt 0:03:03]} 35. Be4 {[%emt 0:04:23]} Bxe4 36. Qxe4 {[%emt 0:00:04]} Qxe4+ {[%emt 0:05:21]} 37. Kxe4 {[%emt 0:00:03]} Rd1 {[%emt 0:00:15]} 38. Bb2 {[%emt 0:02:56]} Rxa1 {[%emt 0:00:29]} 39. Bxa1 {[%emt 0:00:04]} Rd1 {[%emt 0:00:38]} 40. Bb2 {[%emt 0:00:14]} Nd7 {[%emt 0:00:54]} 41. c4 {[%emt 0:41:33]} Nc5+ {[%emt 0:31:02]} 42. Ke3 {[%emt 0:02:32]} Ne6 {[%emt 0:00:00]} 43. Bc3 {[%emt 0:00:00]} Rc1 {[%emt 0:00:00]} 44. Kd2 {[%emt 0:00:00]} Rh1 {[%emt 0:00:00]} 45. Nf2 {[%emt 0:00:00]} Rh2 {[%emt 0:00:00]} 46. Ke3 {[%emt 0:00:00]} Rg2 {[%emt 0:00:00]} 47. Kf3 {[%emt 0:00:00]} Rg1 {[%emt 0:00:00]} 48. Ne4 {[%emt 0:00:00]} Rc1 {[%emt 0:00:00]} 49. Ke3 {[%emt 0:00:00]} Rh1 {[%emt 0:00:00]} 50. Nf2 {[%emt 0:00:00]} Rc1 {[%emt 0:00:00]} 51. Kd2 {[%emt 0:00:00]} Rg1 {[%emt 0:00:00]} 52. c5 {[%emt 0:00:00]} Kh7 {[%emt 0:00:00]} 53. b6 {[%emt 0:01:40]} Nxc5 {[%emt 0:00:00]} 54. bxc7 {[%emt 0:00:09]} Rg8 {[%emt 0:00:00]} 55. Ke3 {[%emt 0:02:01]} Nb7 {[%emt 0:00:00]} 56. Ng4 {[%emt 0:00:44]} Rc8 {[%emt 0:00:12]} 57. Nf6+ {[%emt 0:00:15]} Kg6 {[%emt 0:00:14]} 58. Nd5 {[%emt 0:00:15]} Kg5 {[%emt 0:00:33]} 59. Bd4 {[%emt 0:00:21]} Kh4 {[%emt 0:00:52]} 60. Bb6 {[%emt 0:00:29]} Re8 {[%emt 0:00:04]} 61. Kf4 {[%emt 0:01:09]} Kxh3 {[%emt 0:01:13]} 62. Kf5 {[%emt 0:00:15]} Kg3 {[%emt 0:00:14]} 63. Nf6 {[%emt 0:00:41]} Rh8 {[%emt 0:01:00]} 64. Ne4+ {[%emt 0:00:33]} Kf3 {[%emt 0:00:09]} 65. Nd6 {[%emt 0:01:10]} Rh5+ {[%emt 0:00:39]} 66. Kf6 {[%emt 0:00:05]} Rh6+ {[%emt 0:00:29]} 67. Kg7 {[%emt 0:00:53]} Rxd6 {[%emt 0:01:39]} 68. c8=Q {[%emt 0:01:01]} Rxb6 {[%emt 0:00:14]} 69. Qc3+ {[%emt 0:00:10]} Ke4 {[%emt 0:00:25]} 70. Kxf7 {[%emt 0:00:19]} Kd5 {[%emt 0:00:45]} 71. Qd3+ {[%emt 0:01:03]} Kc5 {[%emt 0:00:33]} 72. e6 {[%emt 0:00:24]} Nd6+ {[%emt 0:00:25]} 73. Kf6 {[%emt 0:00:26]} Rb4 {[%emt 0:03:11]} 74. Qe3+ {[%emt 0:01:45]} Kc6 {[%emt 0:00:48]} 75. e7 {[%emt 0:01:10]} Rxa4 {[%emt 0:01:27]} 76. e8=Q+ {[%emt 0:00:17]} Kd5 1-0

[Event "DFMMLV 2019"]
[Site "Braunfels"]
[Date "2019.06.21"]
[Round "3.19"]
[White "Barpiyeva, Gulsana"]
[Black "Leib, Britta"]
[Result "1/2-1/2"]
[ECO "E73"]
[WhiteElo "2018"]
[BlackElo "1884"]
[Annotator "NA"]
[PlyCount "94"]
[EventDate "2019.06.20"]
[EventType "team-tourn"]
[EventCountry "GER"]
[SourceTitle "playchess.com"]
[Source "ChessBase"]
[SourceQuality "1"]
[WhiteTeam "Hessen 1"]
[BlackTeam "Schleswig Holstein"]
[TimeControl "40/5400+30:1800+30"]

1. d4 {[%emt 0:00:00]} g6 {[%emt 0:00:00]} 2. c4 {[%emt 0:00:00]} Nf6 {[%emt 0:00:34]} 3. Nc3 {[%emt 0:00:13]} Bg7 {[%emt 0:00:07]} 4. e4 {[%emt 0:01:00]} d6 {[%emt 0:00:04]} 5. Be2 {[%emt 0:00:18]} c6 {[%emt 0:02:29]} 6. Be3 {[%emt 0:02:13]} Qc7 {[%emt 0:06:35]} 7. f3 {[%emt 0:04:42]} h5 {[%emt 0:05:07]} 8. Qd2 {[%emt 0:00:46]} Nbd7 {[%emt 0:03:42]} 9. Nh3 {[%emt 0:01:27]} a6 {[%emt 0:09:22]} 10. Nf2 {[%emt 0:02:38]} O-O {[%emt 0:03:11]} 11. O-O {[%emt 0:05:54]} e5 {[%emt 0:03:13]} 12. Rfd1 {[%emt 0:05:09]} Re8 {[%emt 0:05:44]} 13. Rac1 {[%emt 0:10:20]} Nf8 {[%emt 0:05:15]} 14. d5 {[%emt 0:01:38]} c5 {[%emt 0:03:18]} 15. a3 {[%emt 0:05:42]} Bd7 {[%emt 0:02:57]} 16. b4 {[%emt 0:01:40]} b6 {[%emt 0:02:45]} 17. Rb1 {[%emt 0:02:48]} Rec8 {[%emt 0:05:31]} 18. Rdc1 {[%emt 0:07:14]} Rab8 {[%emt 0:02:34]} 19. h3 {[%emt 0:03:10]} N8h7 {[%emt 0:01:15]} 20. Rb3 {[%emt 0:04:17]} Be8 {[%emt 0:06:01]} 21. g4 {[%emt 0:04:58]} Qd8 {[%emt 0:04:02]} 22. Rcb1 {[%emt 0:00:58]} hxg4 {[%emt 0:03:46]} 23. hxg4 {[%emt 0:00:24]} Nd7 {[%emt 0:00:10]} 24. Bd3 {[%emt 0:02:39]} Bf6 {[%emt 0:02:13]} 25. Nh3 {[%emt 0:03:08]} Be7 {[%emt 0:08:37]} 26. Kh2 {[%emt 0:02:36]} a5 {[%emt 0:01:37]} 27. Nb5 {[%emt 0:03:48]} Ra8 {[%emt 0:02:16]} 28. bxa5 {[%emt 0:05:17]} Rxa5 {[%emt 0:02:11]} 29. Rg1 {[%emt 0:08:30]} Rca8 {[%emt 0:01:31]} 30. Qc1 {[%emt 0:00:23]} Ndf8 {[%emt 0:02:05]} 31. Nc3 {[%emt 0:00:32]} Qb8 {[%emt 0:02:43]} 32. Qb2 {[%emt 0:02:31]} R5a6 {[%emt 0:02:03]} 33. Bc1 {[%emt 0:01:20]} Bd7 {[%emt 0:00:47]} 34. Qb1 {[%emt 0:03:10]} Bd8 {[%emt 0:00:28]} 35. Nb5 {[%emt 0:00:50]} Ra4 {[%emt 0:00:56]} 36. g5 {[%emt 0:02:07]} Be7 {[%emt 0:00:48]} 37. Nc3 {[%emt 0:01:55]} R4a6 {[%emt 0:00:04]} 38. Rg2 {[%emt 0:00:43]} Qd8 {[%emt 0:00:59]} 39. Nb5 {[%emt 0:01:31]} Bxh3 {[%emt 0:01:43]} 40. Kxh3 {[%emt 0:00:09]} Nxg5+ {[%emt 0:00:03]} 41. Bxg5 {[%emt 0:02:44]} Bxg5 {[%emt 0:14:43]} 42. Rg4 {[%emt 0:11:55]} Be7 {[%emt 0:06:35]} 43. Qc1 {[%emt 0:03:07]} Kg7 {[%emt 0:03:22]} 44. Rb2 {[%emt 0:03:20]} Nd7 {[%emt 0:00:16]} 45. Rh2 {[%emt 0:03:47]} Nf6 {[%emt 0:01:24]} 46. Rg1 {[%emt 0:02:03]} Nh5 {[%emt 0:02:11]} 47. Bf1 {[%emt 0:01:26]} Qd7+ {[%emt 0:00:36]} 1/2-1/2

[Event "DFMMLV 2019"]
[Site "Braunfels"]
[Date "2019.06.21"]
[Round "3.20"]
[White "Gressmann, Hanna"]
[Black "Lukas, Anne"]
[Result "0-1"]
[ECO "B25"]
[WhiteElo "1840"]
[BlackElo "1842"]
[Annotator "NA"]
[PlyCount "58"]
[EventDate "2019.06.20"]
[EventType "team-tourn"]
[EventCountry "GER"]
[SourceTitle "playchess.com"]
[Source "ChessBase"]
[SourceQuality "1"]
[WhiteTeam "Schleswig Holstein"]
[BlackTeam "Hessen 1"]
[TimeControl "40/5400+30:1800+30"]

1. e4 {[%emt 0:00:00]} c5 {[%emt 0:00:00]} 2. Nc3 {[%emt 0:00:00]} Nc6 {[%emt 0:00:00]} 3. g3 {[%emt 0:00:00]} g6 {[%emt 0:00:00]} 4. Bg2 {[%emt 0:00:06]} Bg7 {[%emt 0:00:00]} 5. d3 {[%emt 0:00:24]} d6 {[%emt 0:00:07]} 6. f4 {[%emt 0:00:18]} e6 {[%emt 0:00:06]} 7. Nf3 {[%emt 0:00:09]} Nge7 {[%emt 0:00:05]} 8. O-O {[%emt 0:00:09]} O-O {[%emt 0:00:05]} 9. Be3 {[%emt 0:00:12]} b6 {[%emt 0:00:07]} 10. e5 {[%emt 0:06:34]} Bb7 {[%emt 0:01:33]} 11. exd6 {[%emt 0:04:59]} Nf5 {[%emt 0:01:25]} 12. Bf2 {[%emt 0:00:41]} Qxd6 {[%emt 0:00:22]} 13. Qd2 {[%emt 0:12:05]} Qd7 {[%emt 0:04:18]} 14. g4 {[%emt 0:08:33]} Nfd4 {[%emt 0:01:27]} 15. Nxd4 {[%emt 0:05:52]} Nxd4 {[%emt 0:00:23]} 16. Bxd4 {[%emt 0:01:29]} Bxd4+ {[%emt 0:00:15]} 17. Kh1 {[%emt 0:00:05]} f5 {[%emt 0:02:43]} 18. h3 {[%emt 0:04:26]} Rae8 {[%emt 0:01:43]} 19. Nd1 {[%emt 0:01:54]} Bg7 {[%emt 0:00:56]} 20. c3 {[%emt 0:04:10]} e5 {[%emt 0:01:11]} 21. fxe5 {[%emt 0:01:06]} Bxg2+ {[%emt 0:00:44]} 22. Qxg2 {[%emt 0:00:20]} Rxe5 {[%emt 0:01:40]} 23. gxf5 {[%emt 0:02:18]} Rexf5 {[%emt 0:00:20]} 24. Rxf5 {[%emt 0:01:07]} Qxf5 {[%emt 0:00:07]} 25. Ne3 {[%emt 0:02:32]} Qxd3 {[%emt 0:00:35]} 26. Ng4 {[%emt 0:00:35]} Rf3 {[%emt 0:01:27]} 27. Nf2 {[%emt 0:01:53]} Qf5 {[%emt 0:00:21]} 28. Ng4 {[%emt 0:01:25]} h5 {[%emt 0:00:42]} 29. Nh2 {[%emt 0:00:06]} Rf2 {[%emt 0:00:50]} 0-1

[Event "DFMMLV 2019"]
[Site "Braunfels"]
[Date "2019.06.21"]
[Round "3.21"]
[White "Frank, Michelle Viviane"]
[Black "Hielscher, Ursula"]
[Result "1/2-1/2"]
[ECO "D00"]
[WhiteElo "1915"]
[BlackElo "1796"]
[Annotator "NA"]
[PlyCount "67"]
[EventDate "2019.06.20"]
[EventType "team-tourn"]
[EventCountry "GER"]
[SourceTitle "playchess.com"]
[Source "ChessBase"]
[SourceQuality "1"]
[WhiteTeam "Hessen 1"]
[BlackTeam "Schleswig Holstein"]
[TimeControl "40/5400+30:1800+30"]

1. d4 {[%emt 0:00:00]} d5 {[%emt 0:00:00]} 2. Bf4 {[%emt 0:00:00]} Nf6 {[%emt 0:00:00]} 3. e3 {[%emt 0:00:07]} e6 {[%emt 0:01:00]} 4. c3 {[%emt 0:00:15]} Bd6 {[%emt 0:00:32]} 5. Nd2 {[%emt 0:01:43]} Bxf4 {[%emt 0:03:01]} 6. exf4 {[%emt 0:00:05]} O-O {[%emt 0:00:07]} 7. Ngf3 {[%emt 0:00:49]} Nbd7 {[%emt 0:03:09]} 8. Bd3 {[%emt 0:01:40]} c5 {[%emt 0:02:33]} 9. O-O {[%emt 0:02:36]} cxd4 {[%emt 0:01:34]} 10. Nxd4 {[%emt 0:00:44]} Nc5 {[%emt 0:01:57]} 11. Bc2 {[%emt 0:01:18]} Qc7 {[%emt 0:01:24]} 12. g3 {[%emt 0:01:46]} Bd7 {[%emt 0:03:20]} 13. N2f3 {[%emt 0:01:33]} Qb6 {[%emt 0:05:05]} 14. Rb1 {[%emt 0:01:03]} Qc7 {[%emt 0:07:20]} 15. Ne5 {[%emt 0:00:43]} Be8 {[%emt 0:00:59]} 16. Re1 {[%emt 0:00:52]} a6 {[%emt 0:01:10]} 17. Kg2 {[%emt 0:03:38]} b5 {[%emt 0:04:17]} 18. f3 {[%emt 0:01:04]} a5 {[%emt 0:10:31]} 19. a3 {[%emt 0:05:20]} Rb8 {[%emt 0:07:45]} 20. Rc1 {[%emt 0:03:16]} Na4 {[%emt 0:01:35]} 21. Bb1 {[%emt 0:00:29]} Nc5 {[%emt 0:04:18]} 22. Qc2 {[%emt 0:03:58]} Ncd7 {[%emt 0:01:03]} 23. Qe2 {[%emt 0:04:04]} Nxe5 {[%emt 0:01:37]} 24. fxe5 {[%emt 0:00:10]} Nd7 {[%emt 0:00:12]} 25. Nxb5 {[%emt 0:01:44]} Qxe5 {[%emt 0:03:25]} 26. Qxe5 {[%emt 0:02:55]} Nxe5 {[%emt 0:00:40]} 27. Nc7 {[%emt 0:00:35]} Rxb2+ {[%emt 0:00:49]} 28. Rc2 {[%emt 0:00:27]} Rxc2+ {[%emt 0:00:51]} 29. Bxc2 {[%emt 0:00:06]} Nc4 {[%emt 0:00:43]} 30. Bd3 {[%emt 0:00:52]} Nd6 {[%emt 0:03:04]} 31. Rb1 {[%emt 0:00:21]} Ba4 {[%emt 0:01:17]} 32. Rb6 {[%emt 0:00:26]} Rd8 {[%emt 0:00:42]} 33. Ra6 {[%emt 0:01:23]} g6 {[%emt 0:08:02]} 34. Rxa5 {[%emt 0:00:13]} 1/2-1/2